[Event "XVI Gran Hotel Bali 2017"]
[Site "Benidorm"]
[Date "2017.12.04"]
[Round "4"]
[White "Serra Pages, Jordi"]
[Black "Lacrosse, Marc"]
[Result "1/2-1/2"]
[ECO "D52"]
[WhiteElo "2238"]
[BlackElo "2108"]
[Annotator "NA"]
[PlyCount "141"]
[EventDate "2017.??.??"]
[EventType "swiss"]
[EventCountry "ESP"]
[SourceTitle "playchess.com"]
[Source "ChessBase"]
[SourceQuality "1"]
[TimeControl "5400+30"]

1. d4 {[%emt 0:00:00]} d5 {[%emt 0:01:59]} 2. c4 {[%emt 0:00:03]} e6 {[%emt 0:00:17]} 3. Nc3 {[%emt 0:00:34]} Nf6 {[%emt 0:00:20]} 4. Bg5 {[%emt 0:01:02]} Nbd7 {[%emt 0:01:50]} 5. e3 {[%emt 0:00:49]} c6 {[%emt 0:00:44]} 6. Nf3 {[%emt 0:01:01]} Qa5 {[%emt 0:02:09]} 7. cxd5 {[%emt 0:02:44]} Nxd5 {[%emt 0:01:28]} 8. Qd2 {[%emt 0:01:47]} N7b6 {[%emt 0:02:13]} 9. a3 {[%emt 0:13:47]} Nxc3 {[%emt 0:09:48]} 10. Qxc3 {[%emt 0:05:50]} Qxc3+ {[%emt 0:05:48]} 11. bxc3 {[%emt 0:00:06]} f6 {[%emt 0:06:14]} 12. Bh4 {[%emt 0:04:01]} c5 {[%emt 0:06:22]} 13. Bb5+ {[%emt 0:13:11]} Bd7 {[%emt 0:02:25]} 14. a4 {[%emt 0:00:31]} cxd4 {[%emt 0:06:20]} 15. Nxd4 {[%emt 0:27:27]} e5 {[%emt 0:03:57]} 16. Ne6 {[%emt 0:09:44]} Rc8 {[%emt 0:05:28]} 17. O-O {[%emt 0:01:28]} Kf7 {[%emt 0:08:20]} 18. Nxf8 {[%emt 0:03:36]} Rhxf8 {[%emt 0:00:27]} 19. Rfb1 {[%emt 0:05:44]} Rfd8 {[%emt 0:08:16]} 20. e4 {[%emt 0:03:05]} Rxc3 {[%emt 0:03:29]} 21. f3 {[%emt 0:01:21]} Be6 {[%emt 0:03:58]} 22. a5 {[%emt 0:00:53]} Nc8 {[%emt 0:00:57]} 23. Be1 {[%emt 0:01:10]} Rb3 {[%emt 0:02:20]} 24. Rxb3 {[%emt 0:00:51]} Bxb3 {[%emt 0:00:07]} 25. Rc1 {[%emt 0:00:17]} Nd6 {[%emt 0:02:08]} 26. Rc7+ {[%emt 0:00:21]} Ke6 {[%emt 0:00:25]} 27. Be2 {[%emt 0:01:03]} Rd7 {[%emt 0:00:29]} 28. Rc3 {[%emt 0:00:53]} Ba4 {[%emt 0:00:26]} 29. Bf2 {[%emt 0:00:23]} a6 {[%emt 0:02:03]} 30. Bb6 {[%emt 0:00:36]} Ke7 {[%emt 0:03:19]} 31. Kf2 {[%emt 0:00:29]} Bb5 {[%emt 0:00:38]} 32. Bxb5 {[%emt 0:00:41]} Nxb5 {[%emt 0:00:11]} 33. Rc8 {[%emt 0:00:22]} Kf7 {[%emt 0:01:16]} 34. h4 {[%emt 0:00:18]} h5 {[%emt 0:02:52]} 35. Rh8 {[%emt 0:00:40]} g6 {[%emt 0:01:56]} 36. Rh7+ {[%emt 0:00:22]} Ke6 {[%emt 0:00:16]} 37. Rh6 {[%emt 0:00:25]} Rg7 {[%emt 0:01:03]} 38. Rh8 {[%emt 0:00:29]} Nd6 {[%emt 0:01:18]} 39. Rf8 {[%emt 0:00:16]} Nc4 {[%emt 0:01:17]} 40. Bd8 {[%emt 0:00:30]} Rf7 {[%emt 0:00:54]} 41. Rg8 {[%emt 0:00:05]} Rd7 {[%emt 0:01:07]} 42. Rh8 {[%emt 0:00:57]} Rd2+ {[%emt 0:00:50]} 43. Kg3 {[%emt 0:01:01]} Ne3 {[%emt 0:00:31]} 44. Rf8 {[%emt 0:00:35]} Rxg2+ {[%emt 0:01:09]} 45. Kh3 {[%emt 0:00:12]} g5 {[%emt 0:01:07]} 46. Rxf6+ {[%emt 0:00:49]} Kd7 {[%emt 0:00:10]} 47. hxg5 {[%emt 0:00:22]} Kxd8 {[%emt 0:00:23]} 48. g6 {[%emt 0:00:17]} Rg1 {[%emt 0:00:38]} 49. Kh4 {[%emt 0:00:43]} Nc4 {[%emt 0:01:42]} 50. Kxh5 {[%emt 0:00:23]} Nxa5 {[%emt 0:01:13]} 51. Kh6 {[%emt 0:00:32]} Nc6 {[%emt 0:00:10]} 52. g7 {[%emt 0:00:38]} Ne7 {[%emt 0:00:10]} 53. Rf8+ {[%emt 0:00:34]} Kd7 {[%emt 0:00:12]} 54. Rb8 {[%emt 0:00:17]} Ke6 {[%emt 0:00:45]} 55. Rxb7 {[%emt 0:00:25]} Kf7 {[%emt 0:00:19]} 56. Ra7 {[%emt 0:00:39]} Rg6+ {[%emt 0:00:13]} 57. Kh5 {[%emt 0:00:38]} Rxg7 {[%emt 0:00:52]} 58. Rxa6 {[%emt 0:00:21]} Rg3 {[%emt 0:00:26]} 59. Ra5 {[%emt 0:00:16]} Ng6 {[%emt 0:01:37]} 60. Ra7+ {[%emt 0:00:15]} Ke8 {[%emt 0:00:18]} 61. Ra6 {[%emt 0:00:44]} Nf4+ {[%emt 0:00:23]} 62. Kh4 {[%emt 0:00:14]} Rxf3 {[%emt 0:00:12]} 63. Kg4 {[%emt 0:00:18]} Rf1 {[%emt 0:00:28]} 64. Ra5 {[%emt 0:01:10]} Nd3 {[%emt 0:00:38]} 65. Rd5 {[%emt 0:00:21]} Rf4+ {[%emt 0:00:31]} 66. Kg3 {[%emt 0:00:24]} Rxe4 {[%emt 0:00:28]} 67. Rxd3 {[%emt 0:00:12]} Ke7 {[%emt 0:00:20]} 68. Kf3 {[%emt 0:00:38]} Ra4 {[%emt 0:00:23]} 69. Ke3 {[%emt 0:00:30]} Ke6 {[%emt 0:00:03]} 70. Rd8 {[%emt 0:00:17]} Ra3+ {[%emt 0:00:03]} 71. Ke4 {[%emt 0:00:08]} 1/2-1/2

[Event "XVI Gran Hotel Bali 2017"]
[Site "Benidorm"]
[Date "2017.12.04"]
[Round "4"]
[White "Picazo Lopez, Juan Antonio"]
[Black "Ibanez Aullana, Ramon"]
[Result "1/2-1/2"]
[ECO "A53"]
[WhiteElo "2204"]
[BlackElo "2295"]
[Annotator "NA"]
[PlyCount "129"]
[EventDate "2017.??.??"]
[EventType "swiss"]
[EventCountry "ESP"]
[SourceTitle "playchess.com"]
[Source "ChessBase"]
[SourceQuality "1"]
[TimeControl "5400+30"]

1. d4 {[%emt 0:00:00]} Nf6 {[%emt 0:00:36]} 2. c4 {[%emt 0:00:21]} d6 {[%emt 0:00:16]} 3. Nc3 {[%emt 0:01:16]} e5 {[%emt 0:00:09]} 4. dxe5 {[%emt 0:01:45]} dxe5 {[%emt 0:00:03]} 5. Qxd8+ {[%emt 0:00:22]} Kxd8 {[%emt 0:00:02]} 6. Nf3 {[%emt 0:00:18]} Nbd7 {[%emt 0:06:27]} 7. Rg1 {[%emt 0:05:29]} h6 {[%emt 0:09:54] A53: Old Indian Defence without Nf3} 8. g4 {[%emt 0:11:56]} Ke8 $146 {[%emt 0:26:52]} ({Predecessor:} 8... e4 9. g5 exf3 10. gxf6 gxf6 11. Bf4 c6 12. O-O-O Ke8 13. Ne4 Be7 14. Nd6+ Bxd6 15. Bxd6 {1-0 (91) Rowson,J (2580)-Turner,M (2482) Sunningdale 2008}) 9. h4 {[%emt 0:05:18]} e4 {[%emt 0:05:30]} 10. Nd4 {[%emt 0:03:43]} Bb4 {[%emt 0:04:41]} 11. Bd2 {[%emt 0:22:28]} a6 {[%emt 0:09:05]} 12. g5 {[%emt 0:02:16]} hxg5 {[%emt 0:01:03]} 13. hxg5 {[%emt 0:00:54]} e3 {[%emt 0:00:55]} 14. Bxe3 {[%emt 0:05:11]} Ne4 {[%emt 0:01:25]} 15. Nc2 {[%emt 0:00:57]} Bxc3+ {[%emt 0:08:04]} 16. bxc3 {[%emt 0:00:08]} g6 {[%emt 0:02:43]} 17. Bg2 {[%emt 0:00:51]} Rh4 {[%emt 0:00:34]} 18. Nb4 {[%emt 0:16:42]} c6 {[%emt 0:06:38]} 19. Rc1 {[%emt 0:01:29]} Ne5 {[%emt 0:02:08]} 20. Bxe4 {[%emt 0:10:35]} Rxe4 {[%emt 0:00:03]} 21. Rh1 {[%emt 0:00:12]} Nxc4 {[%emt 0:04:50] [#]} (21... Kd8 $16) 22. Rh8+ $14 {[%emt 0:01:27]} (22. Rd1 $1 $18 Nxe3 23. Rh8+ Ke7 24. fxe3) 22... Kd7 {[%emt 0:00:22]} 23. Rd1+ {[%emt 0:00:43]} Kc7 {[%emt 0:00:31]} 24. Rd4 {[%emt 0:02:09]} Rxd4 {[%emt 0:01:40]} 25. Bxd4 {[%emt 0:01:11]} b6 {[%emt 0:00:19]} 26. Nd3 {[%emt 0:00:50]} Rb8 {[%emt 0:05:30]} 27. Ne5 {[%emt 0:02:02]} Be6 {[%emt 0:01:57]} 28. Rxb8 {[%emt 0:01:07]} Kxb8 {[%emt 0:00:02]} 29. Nxc6+ {[%emt 0:00:06]} Kc7 {[%emt 0:00:33]} 30. Nb4 {[%emt 0:00:35]} a5 {[%emt 0:00:20]} 31. Nd3 {[%emt 0:01:22]} Na3 {[%emt 0:01:12]} 32. Nc1 {[%emt 0:00:10]} Kc6 {[%emt 0:00:52]} 33. Kd2 {[%emt 0:00:10]} Nc4+ {[%emt 0:00:45]} 34. Kd3 {[%emt 0:00:39]} Kb5 {[%emt 0:00:07]} 35. Nb3 {[%emt 0:01:29]} Ka4 {[%emt 0:00:08]} 36. Nd2 {[%emt 0:00:50]} b5 {[%emt 0:00:35]} 37. e4 {[%emt 0:00:41]} Ka3 {[%emt 0:00:44]} 38. Nb3 {[%emt 0:00:40]} Kxa2 {[%emt 0:00:18]} 39. Nc5 {[%emt 0:00:02]} Kb2 {[%emt 0:00:43]} 40. f4 {[%emt 0:00:27]} a4 {[%emt 0:00:28]} 41. Nxe6 {[%emt 0:00:32]} a3 {[%emt 0:00:24]} 42. Nc7 {[%emt 0:00:27]} a2 {[%emt 0:00:18]} 43. Nxb5 {[%emt 0:00:02]} a1=Q {[%emt 0:00:10]} 44. Kxc4 {[%emt 0:00:18]} Qf1+ {[%emt 0:00:22]} 45. Kb4 {[%emt 0:01:11]} Qxf4 {[%emt 0:00:17]} 46. c4+ {[%emt 0:00:24]} Kc2 {[%emt 0:00:03]} 47. c5 {[%emt 0:01:01]} Qd2+ {[%emt 0:01:02]} 48. Kc4 {[%emt 0:00:12]} Qd3+ {[%emt 0:00:48]} 49. Kb4 {[%emt 0:00:01]} Qxe4 {[%emt 0:00:45]} 50. Ka5 {[%emt 0:00:19]} Qb7 {[%emt 0:00:45]} 51. Be5 {[%emt 0:00:48]} Kd3 {[%emt 0:00:57]} 52. Bc7 {[%emt 0:00:03]} Qd5 {[%emt 0:00:40]} 53. Bb6 {[%emt 0:00:43]} Qxg5 {[%emt 0:00:24]} 54. Ka6 {[%emt 0:00:28]} Qd5 {[%emt 0:00:36]} 55. Na7 {[%emt 0:00:02]} g5 {[%emt 0:00:43]} 56. c6 {[%emt 0:00:01]} f5 {[%emt 0:00:21]} 57. c7 {[%emt 0:00:01]} Qc4+ {[%emt 0:00:22]} 58. Kb7 {[%emt 0:00:16]} f4 {[%emt 0:00:40]} 59. Nc6 {[%emt 0:00:13]} Qe6 {[%emt 0:00:30]} 60. c8=Q {[%emt 0:01:41]} Qxc8+ {[%emt 0:00:02]} 61. Kxc8 {[%emt 0:00:05]} Ke4 {[%emt 0:00:10]} 62. Kd7 {[%emt 0:00:30]} f3 {[%emt 0:00:21]} 63. Ke6 {[%emt 0:00:12]} g4 {[%emt 0:00:21]} 64. Ne5 {[%emt 0:01:20]} g3 {[%emt 0:00:12]} 65. Nxf3 1/2-1/2

[Event "XVI Gran Hotel Bali 2017"]
[Site "Benidorm"]
[Date "2017.12.04"]
[Round "4"]
[White "Perez Perez, Gabriel"]
[Black "Lornye, Pylyp"]
[Result "0-1"]
[ECO "B09"]
[WhiteElo "2153"]
[BlackElo "2264"]
[Annotator "NA"]
[PlyCount "100"]
[EventDate "2017.??.??"]
[EventType "swiss"]
[EventCountry "ESP"]
[SourceTitle "playchess.com"]
[Source "ChessBase"]
[SourceQuality "1"]
[TimeControl "5400+30"]

1. e4 {[%emt 0:00:00]} d6 {[%emt 0:00:33]} 2. d4 {[%emt 0:00:11]} Nf6 {[%emt 0:00:06]} 3. Nc3 {[%emt 0:00:07]} g6 {[%emt 0:00:06]} 4. f4 {[%emt 0:00:02]} Bg7 {[%emt 0:00:10]} 5. Nf3 {[%emt 0:00:03]} O-O {[%emt 0:00:09]} 6. Bd3 {[%emt 0:00:02]} Nc6 {[%emt 0:01:03]} 7. e5 {[%emt 0:00:12]} dxe5 {[%emt 0:00:12]} 8. fxe5 {[%emt 0:00:12]} Ng4 {[%emt 0:01:42]} 9. Be4 {[%emt 0:00:05]} f6 {[%emt 0:00:12]} 10. h3 {[%emt 0:00:05]} Nh6 {[%emt 0:00:12] B09: Pirc-Ufimzew-Verteidigung (Dreibauernangriff)} 11. exf6 {[%emt 0:00:06]} exf6 {[%emt 0:00:06]} 12. O-O {[%emt 0:00:42]} Nf5 {[%emt 0:03:23]} 13. d5 $146 {[%emt 0:08:07]} ({Vorgänger:} 13. Ne2 Re8 14. Qd3 Kh8 15. c3 Bd7 16. d5 Nce7 17. Nfd4 c6 18. dxc6 bxc6 {0-1 (40) Diermair,A (2333)-Skoberne,J (2509) Austria 2010}) 13... Ne5 {[%emt 0:06:33]} 14. Re1 {[%emt 0:10:47]} Qd6 {[%emt 0:06:03]} 15. Bxf5 {[%emt 0:15:04]} Bxf5 {[%emt 0:12:33]} 16. Nd4 {[%emt 0:03:44]} Bd7 {[%emt 0:01:30]} 17. Kh1 {[%emt 0:00:40]} c6 {[%emt 0:05:18]} 18. dxc6 {[%emt 0:01:16]} Nxc6 {[%emt 0:05:17]} 19. Ncb5 {[%emt 0:06:31]} Qd5 {[%emt 0:04:30]} 20. Nxc6 {[%emt 0:02:42]} Qxc6 {[%emt 0:01:23]} 21. Nd4 {[%emt 0:00:45]} Qd5 {[%emt 0:00:22]} 22. Nb3 {[%emt 0:01:35]} Bc6 {[%emt 0:09:46]} 23. Qxd5+ {[%emt 0:01:43]} Bxd5 {[%emt 0:00:05]} 24. Be3 {[%emt 0:00:43]} f5 {[%emt 0:02:24]} 25. Bd4 {[%emt 0:01:11]} Bh6 {[%emt 0:01:21]} 26. Nc5 {[%emt 0:07:25]} Rf7 {[%emt 0:01:50]} 27. b3 {[%emt 0:05:41]} b6 {[%emt 0:04:39]} 28. Nd3 {[%emt 0:01:23]} Rd8 {[%emt 0:01:17]} 29. c3 {[%emt 0:04:22]} Be4 {[%emt 0:03:39]} 30. Nf2 {[%emt 0:00:37]} Bb7 {[%emt 0:01:33]} 31. Rad1 {[%emt 0:01:11]} Bg5 {[%emt 0:01:45]} 32. Kg1 {[%emt 0:00:30]} Bh4 {[%emt 0:05:36]} 33. Re6 {[%emt 0:08:08]} Bd5 {[%emt 0:03:32]} 34. Re2 {[%emt 0:00:01]} f4 $11 {[%emt 0:02:51]} 35. Red2 {[%emt 0:05:50]} f3 {[%emt 0:05:02]} 36. Bxb6 {[%emt 0:06:35]} axb6 {[%emt 0:00:05]} 37. Rxd5 {[%emt 0:00:05]} Re8 {[%emt 0:00:03]} 38. g3 {[%emt 0:06:59]} Bxg3 {[%emt 0:00:25]} 39. Rd8 {[%emt 0:02:46]} Rfe7 {[%emt 0:00:18]} 40. Ng4 {[%emt 0:00:54]} Rxd8 {[%emt 0:00:21]} 41. Rxd8+ {[%emt 0:00:01]} Kg7 {[%emt 0:00:08]} 42. Rd1 {[%emt 0:00:24]} h5 {[%emt 0:01:45]} 43. Nh2 {[%emt 0:00:34]} f2+ {[%emt 0:00:12]} 44. Kg2 {[%emt 0:00:18]} Bxh2 {[%emt 0:00:09]} 45. Kxf2 {[%emt 0:00:07]} Be5 {[%emt 0:00:13]} 46. Rd3 {[%emt 0:00:13]} Kf6 {[%emt 0:00:22]} 47. a4 {[%emt 0:00:18]} Kf5 {[%emt 0:00:15]} 48. c4 {[%emt 0:00:14]} Ke4 {[%emt 0:00:30]} 49. Rf3 {[%emt 0:00:34]} Kd4 {[%emt 0:00:44]} 50. Ke2 Bf4+ {[%emt 0:00:51]} 0-1

[Event "XVI Gran Hotel Bali 2017"]
[Site "Benidorm"]
[Date "2017.12.04"]
[Round "4"]
[White "Iolis, Oleg"]
[Black "Gonzalez Laso, Adrian"]
[Result "1-0"]
[ECO "C18"]
[WhiteElo "2119"]
[BlackElo "2244"]
[Annotator "NA"]
[PlyCount "73"]
[EventDate "2017.??.??"]
[EventType "swiss"]
[EventCountry "ESP"]
[SourceTitle "playchess.com"]
[Source "ChessBase"]
[SourceQuality "1"]
[TimeControl "5400+30"]

1. e4 {[%emt 0:00:00]} e6 {[%emt 0:05:08]} 2. d4 {[%emt 0:00:00]} d5 {[%emt 0:00:07]} 3. Nc3 {[%emt 0:00:00]} Bb4 {[%emt 0:00:08]} 4. e5 {[%emt 0:00:00]} c5 {[%emt 0:00:06]} 5. a3 {[%emt 0:00:00]} Bxc3+ {[%emt 0:00:06]} 6. bxc3 {[%emt 0:00:02]} Ne7 {[%emt 0:00:44]} 7. Qg4 {[%emt 0:00:12]} Qc7 {[%emt 0:00:29]} 8. Qxg7 {[%emt 0:00:08]} Rg8 {[%emt 0:00:09]} 9. Qxh7 {[%emt 0:00:05]} cxd4 {[%emt 0:00:05]} 10. Ne2 {[%emt 0:00:11]} Nbc6 {[%emt 0:00:32]} 11. f4 {[%emt 0:00:08]} Bd7 {[%emt 0:00:14]} 12. Qd3 {[%emt 0:01:56]} dxc3 {[%emt 0:00:07]} 13. Nxc3 {[%emt 0:00:20]} a6 {[%emt 0:00:08]} 14. h4 {[%emt 0:00:15]} Nf5 {[%emt 0:02:41]} 15. Rh3 {[%emt 0:00:08]} O-O-O {[%emt 0:02:03]} 16. Rb1 {[%emt 0:00:38]} Na5 {[%emt 0:03:38]} 17. h5 {[%emt 0:03:19]} Nc4 {[%emt 0:14:35]} 18. h6 {[%emt 0:01:10] C18: French: 3 Nc3 Bb4: Main line: 7 h4 and 7 Qg4} Rg6 {[%emt 0:02:27]} 19. h7 {[%emt 0:00:06]} Rh8 {[%emt 0:00:16]} 20. Ne4 {[%emt 0:01:36]} (20. Ne2 Bb5 21. Nd4 Nxe5 22. Qd1 Bxf1 23. Kxf1 Qc4+ 24. Ne2 Qe4 25. Rbb3 Qxg2+ {0-1 (78) Karjakin,S (2727)-Grischuk,A (2728) Moscow 2008}) 20... Bb5 $146 {[%emt 0:30:25]} ({Predecessor:} 20... dxe4 21. Qxc4 Qxc4 22. Bxc4 Rxg2 23. Bxa6 bxa6 24. Rc3+ Bc6 25. Rxc6+ Kd7 26. Rxa6 Rxh7 27. Ra7+ Kc8 28. Ra8+ Kc7 29. Ra7+ Kc8 30. Ra8+ {½-½ (30) Becerra Rivero,J (2602)-Bhat,V (2498) ICC INT 2008}) 21. Ng5 {[%emt 0:15:32]} Nxe5 {[%emt 0:22:03]} 22. Qc3 {[%emt 0:01:01]} Qxc3+ {[%emt 0:00:07]} 23. Rxc3+ {[%emt 0:00:04]} Nc4 {[%emt 0:00:24]} 24. Rh3 {[%emt 0:38:27]} Nfd6 {[%emt 0:11:43]} 25. Rbb3 {[%emt 0:02:55]} Kd7 {[%emt 0:02:00]} 26. Rbg3 {[%emt 0:01:21]} Rg7 {[%emt 0:01:39]} 27. Bd3 {[%emt 0:01:16]} f6 {[%emt 0:00:45]} 28. Nf3 $18 {[%emt 0:07:01]} Rxg3 {[%emt 0:00:33]} 29. Rxg3 {[%emt 0:00:06]} Ne4 {[%emt 0:00:04]} 30. Rg7+ {[%emt 0:00:55]} Kd6 {[%emt 0:00:41]} 31. g4 {[%emt 0:01:48]} Ba4 {[%emt 0:01:11]} 32. g5 {[%emt 0:00:40]} fxg5 {[%emt 0:00:05]} 33. Nxg5 {[%emt 0:00:41]} Nxg5 {[%emt 0:00:28]} 34. fxg5 {[%emt 0:00:07]} Ne5 {[%emt 0:00:23]} 35. g6 {[%emt 0:01:02]} Nxd3+ {[%emt 0:01:08]} 36. cxd3 {[%emt 0:00:04]} Rc8 {[%emt 0:00:05]} 37. Bd2 {[%emt 0:00:34]} 1-0

[Event "XVI Gran Hotel Bali 2017"]
[Site "Benidorm"]
[Date "2017.12.05"]
[Round "5"]
[White "Lornye, Pylyp"]
[Black "Zohaib Hassan, Mohamed"]
[Result "1-0"]
[ECO "A05"]
[WhiteElo "2264"]
[BlackElo "2231"]
[Annotator "RC"]
[PlyCount "67"]
[EventDate "2017.??.??"]
[EventType "swiss"]
[EventCountry "ESP"]
[SourceTitle "playchess.com"]
[Source "ChessBase"]
[SourceQuality "1"]
[TimeControl "5400+30"]

1. Nf3 {[%emt 0:00:00]} Nf6 {[%emt 0:00:09]} 2. g3 {[%emt 0:00:00]} b6 {[%emt 0:00:07]} 3. Bg2 {[%emt 0:00:00]} Bb7 {[%emt 0:00:01]} 4. O-O {[%emt 0:00:02]} e6 {[%emt 0:00:01]} 5. d3 {[%emt 0:00:26]} Be7 {[%emt 0:00:36]} 6. e4 {[%emt 0:01:17]} d5 {[%emt 0:00:25]} 7. Nfd2 {[%emt 0:01:34]} dxe4 {[%emt 0:02:54]} 8. dxe4 {[%emt 0:00:18]} e5 {[%emt 0:00:38]} 9. Nc3 {[%emt 0:02:40]} Nc6 {[%emt 0:04:05]} 10. Nd5 {[%emt 0:04:09]} Bd6 {[%emt 0:01:31]} 11. Nc4 {[%emt 0:04:14]} Ba6 {[%emt 0:03:21]} 12. Nxd6+ {[%emt 0:06:54]} Qxd6 {[%emt 0:00:43]} 13. Re1 {[%emt 0:00:07]} O-O {[%emt 0:00:54]} 14. Bg5 {[%emt 0:01:04]} Nxd5 {[%emt 0:02:02]} 15. exd5 {[%emt 0:00:21]} Nd8 {[%emt 0:01:51]} 16. Be7 {[%emt 0:04:34]} Qxe7 {[%emt 0:00:17]} 17. d6 {[%emt 0:01:38]} cxd6 {[%emt 0:00:14]} 18. Bxa8 {[%emt 0:00:05]} f5 {[%emt 0:00:59]} 19. Bd5+ {[%emt 0:00:40]} Kh8 {[%emt 0:00:15]} 20. Qf3 {[%emt 0:02:07]} Ne6 {[%emt 0:00:16]} 21. Qa3 {[%emt 0:01:38]} Bc8 {[%emt 0:00:22]} 22. Rxe5 {[%emt 0:00:16]} Qf6 {[%emt 0:03:46]} 23. Qxd6 {[%emt 0:00:30]} Nf4 {[%emt 0:00:25]} 24. Qa3 {[%emt 0:10:28]} Nxd5 {[%emt 0:00:10]} 25. Rxd5 {[%emt 0:00:07]} Bb7 {[%emt 0:00:38]} 26. Rd7 {[%emt 0:00:47]} Bc8 {[%emt 0:00:36]} 27. Rxa7 {[%emt 0:01:54]} Re8 {[%emt 0:00:08]} 28. Qc3 {[%emt 0:00:22]} Qf8 {[%emt 0:00:18]} 29. Re1 {[%emt 0:00:17]} Rd8 {[%emt 0:00:48]} 30. Qa3 {[%emt 0:00:34]} Qg8 {[%emt 0:00:28]} 31. Qc3 {[%emt 0:00:42]} f4 {[%emt 0:00:11]} 32. Rae7 {[%emt 0:03:21]} Bh3 {[%emt 0:00:57]} 33. Qc6 {[%emt 0:00:31]} Rc8 {[%emt 0:00:35]} 34. Qxc8 1-0

[Event "XVI Gran Hotel Bali 2017"]
[Site "Benidorm"]
[Date "2017.12.05"]
[Round "5"]
[White "Saenz Narciso, Miguel Angel"]
[Black "Arata, Roberto Mario"]
[Result "1-0"]
[ECO "B12"]
[WhiteElo "2228"]
[BlackElo "2169"]
[Annotator "RC"]
[PlyCount "81"]
[EventDate "2017.??.??"]
[EventType "swiss"]
[EventCountry "ESP"]
[SourceTitle "playchess.com"]
[Source "ChessBase"]
[SourceQuality "1"]
[TimeControl "5400+30"]

1. e4 {[%emt 0:00:00]} c6 {[%emt 0:04:32]} 2. d4 {[%emt 0:00:13]} d5 {[%emt 0:00:09]} 3. e5 {[%emt 0:00:09]} Bf5 {[%emt 0:00:12]} 4. Nc3 {[%emt 0:00:15]} h5 {[%emt 0:01:10]} 5. Bg5 {[%emt 0:06:30]} Qc7 {[%emt 0:03:32]} 6. Nf3 {[%emt 0:04:31]} e6 {[%emt 0:06:17]} 7. Nh4 {[%emt 0:02:34]} Be7 {[%emt 0:00:09]} 8. Nxf5 {[%emt 0:01:33]} exf5 {[%emt 0:00:05]} 9. Qd2 {[%emt 0:02:35]} Nd7 {[%emt 0:05:25]} 10. Qf4 {[%emt 0:07:02]} Nf8 {[%emt 0:02:09]} 11. Bxe7 {[%emt 0:07:17]} Nxe7 {[%emt 0:00:50]} 12. O-O-O {[%emt 0:01:04]} Ne6 {[%emt 0:00:21]} 13. Qe3 {[%emt 0:04:59]} f4 {[%emt 0:01:27]} 14. Qd2 {[%emt 0:02:00]} Nf5 {[%emt 0:00:23]} 15. Ne2 {[%emt 0:00:46]} g5 {[%emt 0:00:24]} 16. Qd3 {[%emt 0:06:25]} Ne7 {[%emt 0:00:31]} 17. g3 {[%emt 0:00:50]} Ng6 {[%emt 0:00:56]} 18. gxf4 {[%emt 0:06:46]} Ngxf4 {[%emt 0:00:53]} 19. Nxf4 {[%emt 0:00:58]} Nxf4 {[%emt 0:00:08]} 20. Qf5 {[%emt 0:00:05]} Ne6 {[%emt 0:00:17]} 21. Qf6 {[%emt 0:02:43]} Rg8 {[%emt 0:00:07]} 22. h4 {[%emt 0:02:40]} Qe7 {[%emt 0:05:03]} 23. hxg5 {[%emt 0:01:58]} Rxg5 {[%emt 0:00:11]} 24. Qh8+ {[%emt 0:01:13]} Qf8 {[%emt 0:02:24]} 25. Rxh5 {[%emt 0:00:47]} O-O-O {[%emt 0:00:14]} 26. Qxf8 {[%emt 0:00:27]} Rxf8 {[%emt 0:00:08]} 27. Rxg5 {[%emt 0:00:24]} Nxg5 {[%emt 0:00:09]} 28. f4 {[%emt 0:00:20]} Ne6 {[%emt 0:01:46]} 29. f5 {[%emt 0:02:59]} Nf4 {[%emt 0:00:12]} 30. Rd2 {[%emt 0:00:46]} Rh8 {[%emt 0:00:46]} 31. Rf2 {[%emt 0:00:11]} Rh4 {[%emt 0:00:11]} 32. c3 {[%emt 0:05:17]} Kd8 {[%emt 0:02:32]} 33. Kd2 {[%emt 0:00:36]} Ke7 {[%emt 0:01:36]} 34. Ke3 {[%emt 0:02:09]} Nh5 {[%emt 0:00:08]} 35. f6+ {[%emt 0:00:36]} Kf8 {[%emt 0:00:09]} 36. Rf3 {[%emt 0:00:45]} Rh2 {[%emt 0:00:59]} 37. Rh3 {[%emt 0:01:34]} Rxh3+ {[%emt 0:00:36]} 38. Bxh3 {[%emt 0:00:05]} Ng3 {[%emt 0:00:23]} 39. Bc8 {[%emt 0:00:25]} b6 {[%emt 0:00:09]} 40. Bb7 {[%emt 0:00:38]} c5 {[%emt 0:00:06]} 41. Bxd5 {[%emt 0:00:18]} 1-0